Cogmind - Beta 9.1 @@@ ROGUE MODE // 2019.10.24 @ 01:03:31 Player: cptwinky Result: Destroyed by G-47 Trooper with Particle Gun Performance ------------- Evolutions (0) 0 Regions Visited (2) 400 Robots Destroyed (6) 30 Value Destroyed (157) 157 Prototype IDs (0) 0 Alien Tech Used (0) 0 Bonus (0) 0 TOTAL SCORE: 587 Bonus ------- None Cogmind --------- Core Integrity 0/250 Matter 283/300 Energy 100/100 System Corruption 2% Temperature Cool (9) Location -10/Mines Parts ------- Power (1) Propulsion (2) Light Treads Light Treads Utility (2) High-capacity Storage Unit High-capacity Storage Unit Weapon (2) Inventory (20) Ion Engine High-capacity Storage Unit Peak State ------------ Power Light Ion Engine Propulsion Wheel Wheel Utility Small Storage Unit Small Storage Unit Weapon Light Assault Rifle Light Assault Rifle Inventory Ion Engine Light Treads Light Treads Assault Rifle [Rating: 7] Favorites ----------- Power Ion Engine Engine Ion Engine Propulsion Wheel Treads Light Treads Wheel Wheel Utility High-capacity Storage Unit Storage High-capacity Storage Unit Weapon Light Assault Rifle Energy Gun Small Laser Ballistic Gun Light Assault Rifle Build | -11 -10 -10 ------- Run | Scr Mat Min Slots Evolved . | . . . Power . | . . . Propulsion . | . . . Utility . | . . . Weapon . | . . . Parts Attached 17 | 8 6 3 Power 2 | 1 1 . Engine 2 | 1 1 . Core . | . . . Reactor . | . . . Propulsion 5 | 2 1 2 Treads 2 | . . 2 Leg . | . . . Wheel 3 | 2 1 . Hover . | . . . Flight . | . . . Utility 4 | 2 2 . Device . | . . . Storage 4 | 2 2 . Processor . | . . . Hackware . | . . . Protection . | . . . Artifact . | . . . Weapon 6 | 3 2 1 Energy Gun 1 | . . 1 Energy Cannon . | . . . Ballistic Gun 5 | 3 2 . Ballistic Cannon . | . . . Launcher . | . . . Special Weapon . | . . . Impact Weapon . | . . . Slashing Weapon . | . . . Piercing Weapon . | . . . Special Melee Weapon . | . . . Unidentified Prototypes . | . . . Parts Lost 9 | . 7 2 Power 1 | . 1 . Propulsion 3 | . 2 1 Utility . | . . . Weapon 5 | . 4 1 Highest Loss Streak 4 | . 4 4 Average Slot Usage (%) 94 | . 96 66 Engine 11 | . 12 . Treads 1 | . . 28 Wheel 26 | . 27 . Storage 28 | . 28 28 Ballistic Gun 24 | . 26 . Naked Turns . | . . . Heaviest Build 72 | 13 72 64 Greatest Support 40 | 20 26 40 Greatest Overweight (x) 7 | . 7 6 Average Overweight (x) 1 | . 2 2 Largest Inventory Capacity 20 | 8 20 20 Average Capacity 15 | 5 15 20 Most Carried 7 | 5 7 4 Average Carried 5 | 2 6 2 Final Capacity 20 | . . 20 Final Carried 2 | . . 2 Class Distribution -------------------- 60% | Hauler-Mutant 39% | Mutant Dominant Class ---------------- Hauler-Mutant | -10/Materials Hauler-Mutant | -10/Mines Resources | -11 -10 -10 ----------- Run | Scr Mat Min Matter Collected 391 | 262 129 . Remotely . | . . . Salvage Created 256 | 60 196 . Parts 13 | 2 11 . Haulers Intercepted 1 | . 1 . Recyclers Shooed . | . . . Parts Field Recycled . | . . . Retrieved Matter . | . . . Parts Self-Destructed . | . . . Prevented . | . . . Kills | -11 -10 -10 ------- Run | Scr Mat Min Combat Hostiles Destroyed 4 | . 4 . Guns 4 | . 4 . Classes Destroyed 3 | 1 2 . Hauler 1 | . 1 . Recycler 1 | 1 . . Grunt 4 | . 4 . Best Kill Streak 1 | 1 1 . Combat Bots Only 1 | . 1 . Max Kills in Single Turn 1 | 1 1 . Gunslinging . | . . . Exploded . | . . . Melee . | . . . Uniques/NPCs Destroyed . | . . . Combat | -11 -10 -10 -------- Run | Scr Mat Min Damage Taken 1284 | . 958 326 Core 252 | . 202 50 Absorbed by Shields . | . . . Core Remaining (%) 100 | 100 . . Volleys Fired 47 | 4 34 9 Largest 2 | 2 2 1 Hottest 40 | 40 40 40 Shots Fired 85 | 8 68 9 Gun 85 | 8 68 9 Cannon . | . . . Launcher . | . . . Special . | . . . Kinetic 76 | 8 68 . Thermal 9 | . . 9 Explosive . | . . . Electromagnetic . | . . . Robot Hit Streak 17 | 6 17 5 Robot Miss Streak 3 | 1 3 1 Penetration Max . | . . . Secondary Targets . | . . . Shots Hit Robots 67 | 6 53 8 Core Hits 20 | 3 15 2 Critical Hits 1 | . 1 . Critical Kills . | . . . Critical Parts Destroyed 1 | . 1 . Melee Attacks . | . . . Impact . | . . . Slashing . | . . . Piercing . | . . . Sneak Attacks . | . . . Combat Hostiles . | . . . Follow-up Attacks . | . . . Damage Inflicted 520 | 49 383 88 Guns 491 | 49 354 88 Cannons . | . . . Explosions . | . . . Melee . | . . . Ramming 29 | . 29 . Kinetic 403 | 49 354 . Thermal 88 | . . 88 Explosive . | . . . Electromagnetic . | . . . Impact . | . . . Slashing . | . . . Piercing . | . . . Highest Corruption 2 | . 2 2 Average Corruption 2 | . 2 2 Corruption Purged . | . . . Effects 2 | . 2 . Data Loss (minor) 2 | . 2 . Overload Shots . | . . . Overflow Damage . | . . . Projectiles . | . . . Explosions . | . . . Melee . | . . . Knockbacks . | . . . Impact . | . . . Kinetic . | . . . Secondary . | . . . Self-Inflicted Damage 14 | . 14 . Shots . | . . . Rammed 2 | . 1 1 Targets Rammed 2 | . 1 1 Kicked . | . . . Crushed . | . . . Highest Temperature 20 | . 18 20 Average Temperature 8 | . 8 8 Received Heat Transfer 609 | . 423 186 Siege Activations . | . . . Robots Corrupted . | . . . Combat Hostiles . | . . . Parts Fried . | . . . Impact Corruptions . | . . . Robots Melted . | . . . Combat Hostiles . | . . . Parts Melted . | . . . Heat Transferred 200 | . . 200 Parts Sabotaged . | . . . Parts Stolen . | . . . Parts Stripped . | . . . Power Chain Reactions . | . . . Missiles Intercepted . | . . . Alert | -11 -10 -10 ------- Run | Scr Mat Min Peak Influence 215 | 5 215 . Average Influence 69 | 1 81 . Maximum Alert Level 1 | . 1 . Low Security (%) 97 | . . . Level 1 2 | . . . Level 2 . | . . . Level 3 . | . . . Level 4 . | . . . Level 5 . | . . . High Security . | . . . Max Security . | . . . Squads Dispatched 5 | . 5 . Investigation 4 | . 4 . Extermination . | . . . Reinforcement 1 | . 1 . Assault . | . . . Garrison . | . . . Intercept . | . . . Construction Impeded . | . . . Haulers Reinforced . | . . . Stealth | -11 -10 -10 --------- Run | Scr Mat Min Distress Signals . | . . . Communications Jammed . | . . . Distress Signals . | . . . Times Spotted 21 | . 19 2 Peak Tracking Total 8 | . 8 2 Tactical Retreats 1 | . 1 . Traps | -11 -10 -10 ------- Run | Scr Mat Min Traps Triggered 4 | . 4 . Indirectly . | . . . Trap Hack Attempts . | . . . Triggered . | . . . Disarmed . | . . . Reprogrammed . | . . . Reused . | . . . Traps Extracted . | . . . Installed . | . . . Triggered . | . . . Machines | -11 -10 -10 ---------- Run | Scr Mat Min Machines Disabled . | . . . Max in Single Turn . | . . . Machines Sabotaged . | . . . Garrisons Compromised . | . . . Overloaded Fab Kills . | . . . Fab Network Shutdowns . | . . . Hacking | -11 -10 -10 --------- Run | Scr Mat Min Machines Accessed 2 | . 2 . Terminals 1 | . 1 . Fabricators . | . . . Repair Stations . | . . . Recycling Units 1 | . 1 . Scanalyzers . | . . . Garrison Access . | . . . Total Hacks 4 | . 4 . Successful 2 | . 2 . Failed 2 | . 2 . Catastrophic . | . . . Database Lockouts . | . . . Manual 4 | . 4 . Terminals 3 | . 3 . Fabricators . | . . . Repair Stations . | . . . Recycling Units 1 | . 1 . Scanalyzers . | . . . Garrison Access . | . . . Terminal Hacks 1 | . 1 . Recall Investigation 1 | . 1 . Fabricator Hacks . | . . . Repair Station Hacks . | . . . Recycling Unit Hacks . | . . . Scanalyzer . | . . . Garrison Access Hacks . | . . . Unauthorized Hacks 2 | . 2 . Terminals . | . . . Fabricators . | . . . Repair Stations . | . . . Recycling Units 1 | . 1 . Tunnel 1 | . 1 . Scanalyzers . | . . . Garrison Access . | . . . Data Cores Recovered . | . . . Used . | . . . Hacking Detections 1 | . 1 . Full Trace Events 1 | . 1 . Feedback Events . | . . . Feedback Blocked . | . . . Robot Schematics Acquired . | . . . Robots Built . | . . . Matter . | . . . Time . | . . . Total Robot Build Rating . | . . . Part Schematics Acquired . | . . . Parts Built . | . . . Matter . | . . . Time . | . . . Total Part Build Rating . | . . . Parts Repaired . | . . . Time . | . . . Parts Recycled . | . . . Recycled Matter . | . . . Retrieved Matter . | . . . Retrieved Components . | . . . Parts Scanalyzed . | . . . Part Schematics Acquired . | . . . Parts Damaged . | . . . Bothacking | -11 -10 -10 ------------ Run | Scr Mat Min Used RIF Installer . | . . . Robots Hacked . | . . . Non-combat . | . . . Combat . | . . . Robot Hacks Applied . | . . . Relay Couplers Released . | . . . Robots Rewired . | . . . Allies Hacked . | . . . Hacks Repelled . | . . . Allies | -11 -10 -10 -------- Run | Scr Mat Min Total Allies . | . . . Largest Group . | . . . Highest-Rated Group . | . . . Highest-Rated Ally . | . . . Total Orders . | . . . Ally Attacks . | . . . Total Damage . | . . . Kills . | . . . Allies Corrupted . | . . . Allies Melted . | . . . Intel | -11 -10 -10 ------- Run | Scr Mat Min Robot Analysis Total . | . . . Derelict Logs Recovered . | . . . Drone Launches . | . . . Drone Recoveries . | . . . Exploration | -11 -10 -10 ------------- Run | Scr Mat Min Turns Passed 633 | 63 540 30 Spaces Moved 401 | 43 354 4 Core 1 | 1 . . Treads 3 | . . 3 Legs . | . . . Wheels 397 | 42 354 1 Hover . | . . . Flight . | . . . Fastest Speed 50 | 50 80 140 Average Speed 100 | 79 102 170 Slowest Speed 180 | 80 150 180 Overloaded Moves . | . . . Propulsion Burnouts . | . . . Robots Hopped . | . . . Cave-ins Triggered . | . . . Exploration Rate (%) 18 | 4 48 2 Regions Visited 2 Branch Regions 1 Pre-discovered Areas 1 | . 1 . Known Exits Taken . | . . . Unknown Exits Taken 2 | 1 1 . Scrap Searched . | . . . Spaces Dug . | . . . Terrain Destroyed . | . . . Melee . | . . . Projectile . | . . . AOE . | . . . Actions | -11 -10 -10 --------- Run | Scr Mat Min Total 555 | 61 477 17 Wait 79 | 2 77 . Move 399 | 42 353 4 Hop . | . . . Pick Up 8 | 5 3 . Fast Attach 7 | 7 . . Attach 6 | . 3 3 Detach . | . . . Swap 4 | 1 3 . Drop 3 | . 3 . Fire 47 | 4 34 9 Melee . | . . . Ram 1 | . 1 . Kick . | . . . Crush 1 | . . 1 Escape Stasis . | . . . Rewire . | . . . Trap . | . . . Miscellaneous . | . . . Route ------- -11/Scrapyard -10/Materials (discovered 2 exits: [*Mat] / [*Min]) -10/Mines History --------- Turn | Location | Event 10 | -11/Scrapyard | Discovered new exit (range 15) 64 | -11/Scrapyard | Entered Materials 522 | -10/Materials | Discovered new exit (range 16) 543 | -10/Materials | Core integrity fell below 50% 567 | -10/Materials | Build established: Hauler-Mutant 580 | -10/Materials | Lost 4 parts (1p1n2w) 586 | -10/Materials | Discovered new exit (range 13) 604 | -10/Materials | Core integrity fell below 20% 604 | -10/Materials | Entered Mines 634 | -10/Mines | Destroyed by G-47 Trooper with Particle Gun Last Messages --------------- 00545_ Lgt. Assault Rifle destroyed. 00549_ Ion Engine destroyed. 00558_ System corrupted: Component data lost. 00586_ EXIT=FOUND 00587_ Door malfunctions. 00592_ K-01 Serf cleans the Machine. 00597_ T-07 Excavator is excavating. 00598_ System corrupted: Component data lost. 00598_ Triggered Alarm Trap. 00598_ An alarm sounds. 00598_ ALERT: Alarm triggered, dispatching investigation squad. 00600_ Slammed into S-10 Pest. 00601_ Com. Wheel destroyed. 00601_ T-07 Excavator is excavating. 00603_ Assault Rifle destroyed. LOCATION=UNKNOWN GOAL=ESCAPE 00606_ Wheel destroyed. 00625_ Sml. Laser destroyed. 00627_ Slammed into G-47 Trooper. Map ----- +----------------------------------------------------+ | ???????????????????????????????? | | ???????????????????????????????? | | ???????????????????????????????? | | ???????????????????????????????? | | ???????????????????????????????? | | ???????????????????????????????? | | ???????????????????????????????? | | ???????????????????????????????? | | ???????????????????????????????? | | ???????????????????????????????? | | ???????????????????????????????? | | ???????????????????????????????? | | ???????????????????????????????? | | ???????????????????????????????? | | ???????????????????????????????? | | ???????????????????????????????? | | ???????????????????????????????? | | ???????????????????????????????? | | ???????????????????????????????? | | ???????????????????????####????? | | ??????????????????????## ##???? | | ??????????????????????# ##??? | | ??????????????????????# #??? | | ??????????????????????## g ##?? | | ???????????????????????## g #?? | | ????????????????????#####@ #?? | | ????????????????????# ##?? | | ????????????????????# #### ##??? | | ??????????????????????????##???? | | ???????????????????????????????? | | ???????????????????????????????? | | ???????????????????????????????? | | ???????????????????????????????? | | ???????????????????????????????? | | ???????????????????????????????? | | ???????????????????????????????? | | ???????????????????????????????? | | ???????????????????????????????? | | ???????????????????????????????? | | ???????????????????????????????? | | ???????????????????????????????? | | | | | | | | | | | | | | | | | | | +----------------------------------------------------+ Best States ------------- Heat Dissipation 25 Energy Generation 10 Energy Capacity 250 Matter Stores 300 Matter Capacity 300 Sight Range 16 Terrain Scan Density 10 Evasion (%) 44 Recoil Reduction 2 Item Schematics ----------------- None Robot Schematics ------------------ None Fabricated ------------ Nothing Alien Tech Used ----------------- None Achievements -------------- None Challenges ------------ None Game ------ Seed ControlAngularNetwork Manual? 0 Play Time 00:05:14 Cumulative 373.8 hours Start 2019.10.24 @ 00:58:57 End 2019.10.24 @ 01:03:31 Sessions 1 Manual Loads 0 Difficulty Rogue Special Mode None Game No. 295 Rogue 287 Adventurer 4 Explorer 0 Win Type - Total 29 Types 23/2/1/1/2/0/0 Lore% 92 Gallery% 92 Achievement% 87 Wizard Run 0 Options --------- ASCII 0 Keyboard 1 Movement Vi Keybinds 0 Fullscreen 0 Font 16/Terminus Map View 76x50 Tactical HUD 1 Map Filters NONE Filters NONE Steam 1 RUN: c7f08674-2364-4792-99ab-adedcfb859c1